[Event "10th Iberoamericano-ch 2024"]
[Site "Linares"]
[Date "2024.09.29"]
[Round "7.37"]
[White "Domingo Nunez, Alejandro"]
[Black "Mayorga Araya, Sofia"]
[Result "1-0"]
[ECO "A05"]
[WhiteElo "2328"]
[BlackElo "2059"]
[Annotator "RC"]
[PlyCount "123"]
[EventDate "2024.09.25"]
[EventType "swiss"]
[EventCountry "ESP"]
[SourceTitle "playchess.com"]
[Source "ChessBase"]
[SourceQuality "1"]
[TimeControl "5400+30"]

1. Nf3 {[%emt 0:01:08]} Nf6 {[%emt 0:00:09]} 2. g3 {[%emt 0:00:07]} b5 {[%emt 0:00:05]} 3. Na3 {[%emt 0:00:11]} a6 {[%emt 0:00:11]} 4. c4 {[%emt 0:00:09]} b4 {[%emt 0:00:28]} 5. Nc2 {[%emt 0:00:03]} e6 {[%emt 0:00:28]} 6. d4 {[%emt 0:00:07]} c5 {[%emt 0:00:47]} 7. Bg2 {[%emt 0:02:23]} Bb7 {[%emt 0:00:15]} 8. d5 {[%emt 0:00:16]} exd5 {[%emt 0:01:15]} 9. Nh4 {[%emt 0:00:03]} d6 {[%emt 0:01:56]} 10. cxd5 {[%emt 0:01:01]} g6 {[%emt 0:00:24]} 11. Ne3 {[%emt 0:00:17]} Bg7 {[%emt 0:01:01]} 12. Nc4 {[%emt 0:00:53]} O-O {[%emt 0:00:34]} 13. O-O {[%emt 0:00:29]} a5 {[%emt 0:00:50]} 14. Bf4 {[%emt 0:00:21]} Ne8 {[%emt 0:00:28]} 15. Qd2 {[%emt 0:00:51]} Ba6 {[%emt 0:11:37]} 16. Rac1 {[%emt 0:00:38]} Nd7 {[%emt 0:05:47]} 17. Nxd6 {[%emt 0:35:05]} Nxd6 {[%emt 0:00:25]} 18. Bxd6 {[%emt 0:00:02]} Re8 {[%emt 0:00:10]} 19. Rfe1 {[%emt 0:11:49]} Qf6 {[%emt 0:01:02]} 20. Bxc5 {[%emt 0:02:01]} Qxb2 {[%emt 0:00:15]} 21. Rc2 {[%emt 0:00:01]} Qa3 {[%emt 0:11:58]} 22. Bd4 {[%emt 0:01:43]} Bxd4 {[%emt 0:03:41]} 23. Qxd4 {[%emt 0:00:14]} Rac8 {[%emt 0:00:07]} 24. Rxc8 {[%emt 0:03:51]} Rxc8 {[%emt 0:00:20]} 25. Qa7 {[%emt 0:01:45]} Bb5 {[%emt 0:00:11]} 26. Nf3 {[%emt 0:13:57]} Qxa2 {[%emt 0:02:21]} 27. Nd4 {[%emt 0:00:06]} b3 {[%emt 0:01:29]} 28. Nc6 {[%emt 0:12:41]} Bxc6 {[%emt 0:08:47]} 29. dxc6 {[%emt 0:00:05]} Qd2 {[%emt 0:03:45]} 30. Rf1 {[%emt 0:08:24]} Ne5 {[%emt 0:01:21]} 31. Qb7 {[%emt 0:02:49]} Qd8 {[%emt 0:00:22]} 32. Qxb3 {[%emt 0:02:27]} Nxc6 {[%emt 0:00:13]} 33. Bd5 {[%emt 0:00:20]} Qe8 {[%emt 0:03:06]} 34. Rc1 {[%emt 0:00:32]} Ne7 {[%emt 0:02:11]} 35. Rxc8 {[%emt 0:00:39]} Nxc8 {[%emt 0:00:09]} 36. Qb8 {[%emt 0:00:02]} a4 {[%emt 0:03:48]} 37. e4 {[%emt 0:00:16]} Qf8 {[%emt 0:01:20]} 38. Qc7 {[%emt 0:00:35]} a3 {[%emt 0:04:12]} 39. e5 {[%emt 0:00:41]} Ne7 {[%emt 0:00:27]} 40. Ba2 {[%emt 0:00:02]} Kg7 {[%emt 0:02:25]} 41. Qc3 {[%emt 0:00:46]} Nf5 {[%emt 0:04:50]} 42. g4 {[%emt 0:00:39]} Nh4 {[%emt 0:04:09]} 43. e6+ {[%emt 0:00:30]} f6 {[%emt 0:02:35]} 44. Qc7+ {[%emt 0:00:56]} Kh6 {[%emt 0:00:23]} 45. e7 {[%emt 0:00:30]} Qa8 {[%emt 0:02:14]} 46. Qg3 {[%emt 0:00:30]} Nf3+ {[%emt 0:00:28]} 47. Kf1 {[%emt 0:00:33]} Ne5 {[%emt 0:03:19]} 48. g5+ {[%emt 0:00:20]} Kh5 {[%emt 0:02:28]} 49. f4 {[%emt 0:00:32]} Qh1+ {[%emt 0:00:56]} 50. Qg1 {[%emt 0:00:38]} Qf3+ {[%emt 0:00:13]} 51. Qf2 {[%emt 0:00:01]} Qh1+ {[%emt 0:00:28]} 52. Qg1 {[%emt 0:00:10]} Qf3+ {[%emt 0:00:14]} 53. Qf2 {[%emt 0:00:05]} Qh1+ {[%emt 0:00:13]} 54. Ke2 {[%emt 0:00:02]} Qe4+ {[%emt 0:00:14]} 55. Qe3 {[%emt 0:00:24]} Qc2+ {[%emt 0:02:52]} 56. Kf1 {[%emt 0:01:44]} Qd1+ {[%emt 0:00:08]} 57. Kg2 {[%emt 0:00:09]} Qg4+ {[%emt 0:00:20]} 58. Kf2 {[%emt 0:00:08]} Qf5 {[%emt 0:03:25]} 59. h3 {[%emt 0:01:27]} Nd3+ {[%emt 0:00:18]} 60. Kg3 {[%emt 0:00:30]} fxg5 {[%emt 0:02:54]} 61. fxg5 {[%emt 0:00:10]} h6 {[%emt 0:01:33]} 62. e8=Q {[%emt 0:00:46]} 1-0

[Event "10th Iberoamericano-ch 2024"]
[Site "Linares"]
[Date "2024.09.29"]
[Round "7.38"]
[White "Jimenez Ruano, Adrian"]
[Black "Buiza Prieto, Eihartze"]
[Result "0-1"]
[ECO "D37"]
[WhiteElo "2255"]
[BlackElo "2056"]
[Annotator "RC"]
[PlyCount "100"]
[EventDate "2024.09.25"]
[EventType "swiss"]
[EventCountry "ESP"]
[SourceTitle "playchess.com"]
[Source "ChessBase"]
[SourceQuality "1"]
[TimeControl "5400+30"]

1. d4 {[%emt 0:02:55]} Nf6 {[%emt 0:00:10]} 2. c4 {[%emt 0:00:06]} e6 {[%emt 0:00:27]} 3. Nc3 {[%emt 0:00:16]} d5 {[%emt 0:00:21]} 4. Nf3 {[%emt 0:02:55]} dxc4 {[%emt 0:00:15]} 5. e3 {[%emt 0:02:25]} c5 {[%emt 0:02:11]} 6. Bxc4 {[%emt 0:01:15]} Nc6 {[%emt 0:02:09]} 7. O-O {[%emt 0:00:07]} Be7 {[%emt 0:03:55]} 8. Qe2 {[%emt 0:02:57]} a6 {[%emt 0:03:20]} 9. Rd1 {[%emt 0:05:12]} Qc7 {[%emt 0:02:32]} 10. dxc5 {[%emt 0:07:56]} Bxc5 {[%emt 0:00:42]} 11. a3 {[%emt 0:00:17]} b5 {[%emt 0:03:22]} 12. Ba2 {[%emt 0:02:22]} O-O {[%emt 0:00:09]} 13. Bd2 {[%emt 0:06:23]} Bb7 {[%emt 0:04:14]} 14. Rac1 {[%emt 0:00:35]} Ba7 {[%emt 0:12:03]} 15. Bb1 {[%emt 0:01:48]} Rac8 {[%emt 0:02:08]} 16. Ng5 {[%emt 0:12:17]} Bb8 {[%emt 0:06:05]} 17. f4 {[%emt 0:00:25]} Qb6 {[%emt 0:01:09]} 18. Nce4 {[%emt 0:08:43]} Nxe4 {[%emt 0:05:35]} 19. Nxe4 {[%emt 0:01:27]} Bxf4 {[%emt 0:11:29]} 20. Nc5 {[%emt 0:09:35]} Be5 {[%emt 0:05:33]} 21. Nd7 {[%emt 0:05:51]} Qc7 {[%emt 0:00:38]} 22. Nxf8 {[%emt 0:00:29]} Rxf8 {[%emt 0:00:37]} 23. Qh5 {[%emt 0:01:25]} g6 {[%emt 0:01:10]} 24. Qh4 {[%emt 0:02:38]} Bxb2 {[%emt 0:01:34]} 25. Rc2 {[%emt 0:04:18]} Bxa3 {[%emt 0:06:05]} 26. Bc3 {[%emt 0:01:01]} Be7 {[%emt 0:00:11]} 27. Qh6 {[%emt 0:00:16]} e5 {[%emt 0:00:09]} 28. Rf1 {[%emt 0:01:05]} a5 {[%emt 0:13:13]} 29. Rcf2 {[%emt 0:03:00]} Nd8 {[%emt 0:00:26]} 30. Rf5 {[%emt 0:04:45]} Qc6 {[%emt 0:07:02]} 31. R5f3 {[%emt 0:00:06]} Bg5 {[%emt 0:00:55]} 32. Qxg5 {[%emt 0:01:40]} Qxc3 {[%emt 0:00:04]} 33. Rh3 {[%emt 0:01:45]} Qb2 {[%emt 0:01:07]} 34. Bd3 {[%emt 0:01:48]} b4 {[%emt 0:01:36]} 35. Rf2 {[%emt 0:01:27]} Qa1+ {[%emt 0:00:05]} 36. Rf1 {[%emt 0:01:44]} Qb2 {[%emt 0:00:01]} 37. Rf2 {[%emt 0:04:59]} Qa1+ {[%emt 0:00:02]} 38. Bf1 {[%emt 0:00:40]} e4 {[%emt 0:01:45]} 39. Rf6 {[%emt 0:00:01]} Re8 {[%emt 0:00:38]} 40. Qb5 {[%emt 0:01:03]} Qxf6 {[%emt 0:00:49]} 41. Qxe8+ {[%emt 0:00:03]} Kg7 {[%emt 0:00:03]} 42. Qb5 {[%emt 0:00:44]} Qf5 {[%emt 0:03:34]} 43. Qb6 {[%emt 0:00:01]} Qd5 {[%emt 0:00:13]} 44. Rh4 {[%emt 0:01:12]} Ne6 {[%emt 0:00:12]} 45. Bc4 {[%emt 0:00:32]} Qxc4 {[%emt 0:00:51]} 46. Qxb7 Qc1+ {[%emt 0:00:09]} 47. Kf2 {[%emt 0:00:03]} Qd2+ {[%emt 0:00:44]} 48. Kf1 {[%emt 0:00:01]} Qc1+ {[%emt 0:00:23]} 49. Ke2 {[%emt 0:00:26]} Qc2+ {[%emt 0:00:06]} 50. Kf1 {[%emt 0:00:18]} b3 {[%emt 0:00:23]} 0-1

[Event "10th Iberoamericano-ch 2024"]
[Site "Linares"]
[Date "2024.09.29"]
[Round "7.39"]
[White "Vehi Bach, Victor Manuel"]
[Black "Alvarez Morales, Miguel"]
[Result "1-0"]
[ECO "B12"]
[WhiteElo "2191"]
[BlackElo "2003"]
[Annotator "RC"]
[PlyCount "153"]
[EventDate "2024.09.25"]
[EventType "swiss"]
[EventCountry "ESP"]
[SourceTitle "playchess.com"]
[Source "ChessBase"]
[SourceQuality "1"]
[TimeControl "5400+30"]

1. e4 {[%emt 0:00:02]} c6 {[%emt 0:00:37]} 2. d4 {[%emt 0:00:11]} d5 {[%emt 0:00:03]} 3. e5 {[%emt 0:00:14]} c5 {[%emt 0:00:04]} 4. dxc5 {[%emt 0:00:07]} e6 {[%emt 0:00:05]} 5. a3 {[%emt 0:00:51]} Bxc5 {[%emt 0:00:06]} 6. b4 {[%emt 0:00:38]} Be7 {[%emt 0:00:06]} 7. Qg4 {[%emt 0:01:26]} g6 {[%emt 0:00:10]} 8. Nf3 {[%emt 0:03:51]} h5 {[%emt 0:01:03]} 9. Qf4 {[%emt 0:05:17]} a5 {[%emt 0:00:06]} 10. b5 {[%emt 0:04:13]} Nd7 {[%emt 0:01:34]} 11. Bd3 {[%emt 0:18:47]} Nh6 {[%emt 0:03:04]} 12. Bb2 {[%emt 0:18:33]} Nc5 {[%emt 0:02:21]} 13. Nbd2 {[%emt 0:12:56]} Nf5 {[%emt 0:01:34]} 14. Nb3 {[%emt 0:03:20]} Nxd3+ {[%emt 0:07:19]} 15. cxd3 {[%emt 0:00:01]} Bd7 {[%emt 0:00:08]} 16. a4 {[%emt 0:03:05]} Bb4+ {[%emt 0:01:07]} 17. Ke2 {[%emt 0:01:20]} Rg8 {[%emt 0:06:30]} 18. h4 {[%emt 0:03:02]} Be7 {[%emt 0:05:36]} 19. g3 {[%emt 0:00:08]} Bf8 {[%emt 0:02:40]} 20. Ng5 {[%emt 0:04:21]} Qb6 {[%emt 0:03:27]} 21. Rac1 {[%emt 0:05:14]} Bh6 {[%emt 0:02:59]} 22. Bd4 {[%emt 0:08:24]} Qd8 {[%emt 0:03:14]} 23. Rc2 {[%emt 0:00:10]} Rc8 {[%emt 0:02:24]} 24. Rxc8 {[%emt 0:01:22]} Bxc8 {[%emt 0:00:46]} 25. Rc1 {[%emt 0:00:25]} Bd7 {[%emt 0:03:46]} 26. f3 {[%emt 0:00:02]} Bxg5 {[%emt 0:02:07]} 27. hxg5 {[%emt 0:00:14]} Rh8 {[%emt 0:00:38]} 28. Bf2 {[%emt 0:01:22]} b6 {[%emt 0:02:24]} 29. g4 {[%emt 0:03:22]} Ne7 {[%emt 0:03:58]} 30. Rh1 {[%emt 0:00:50]} Qc7 {[%emt 0:00:50]} 31. Kd2 {[%emt 0:00:01]} Kf8 {[%emt 0:01:30]} 32. Qf6 {[%emt 0:00:54]} Rh7 {[%emt 0:00:28]} 33. Qf4 {[%emt 0:00:30]} d4 {[%emt 0:06:49]} 34. Qxd4 {[%emt 0:01:03]} Nd5 {[%emt 0:00:07]} 35. gxh5 {[%emt 0:00:17]} Rxh5 {[%emt 0:02:02]} 36. Rxh5 {[%emt 0:00:20]} gxh5 {[%emt 0:00:02]} 37. Be1 {[%emt 0:01:00]} Qd8 {[%emt 0:00:53]} 38. Qh4 {[%emt 0:00:29]} Qe7 {[%emt 0:00:23]} 39. Ke2 {[%emt 0:00:27]} Qa3 {[%emt 0:00:17]} 40. Nd2 {[%emt 0:00:19]} Qc3 {[%emt 0:02:52]} 41. Qe4 {[%emt 0:00:37]} Qc2 {[%emt 0:00:22]} 42. Kf1 {[%emt 0:00:20]} h4 {[%emt 0:00:16]} 43. Qxh4 {[%emt 0:00:40]} Qxd3+ {[%emt 0:00:30]} 44. Kg1 {[%emt 0:00:05]} Qe3+ {[%emt 0:00:19]} 45. Kf1 {[%emt 0:00:55]} Qxe5 {[%emt 0:01:03]} 46. Ne4 {[%emt 0:00:06]} Ne3+ {[%emt 0:01:45]} 47. Ke2 {[%emt 0:00:28]} Nf5 {[%emt 0:00:13]} 48. Qh3 {[%emt 0:00:46]} Qd4 {[%emt 0:00:42]} 49. Bd2 {[%emt 0:00:10]} Bc8 {[%emt 0:01:40]} 50. Bc3 {[%emt 0:00:20]} Qe3+ {[%emt 0:00:05]} 51. Kd1 {[%emt 0:00:00]} Ke7 {[%emt 0:02:27]} 52. Bf6+ {[%emt 0:01:05]} Kd7 {[%emt 0:00:03]} 53. Qg2 {[%emt 0:00:05]} Qb3+ {[%emt 0:00:16]} 54. Ke1 {[%emt 0:00:10]} Bb7 {[%emt 0:00:54]} 55. Qd2+ {[%emt 0:00:23]} Bd5 {[%emt 0:00:12]} 56. Nc3 {[%emt 0:00:09]} Qc4 {[%emt 0:02:44]} 57. Qe2 {[%emt 0:00:11]} Qh4+ {[%emt 0:00:56]} 58. Qf2 {[%emt 0:01:44]} Bxf3 {[%emt 0:01:49]} 59. Qxh4 {[%emt 0:00:01]} Nxh4 {[%emt 0:00:04]} 60. Bd4 {[%emt 0:00:14]} Kc7 {[%emt 0:00:10]} 61. Be5+ {[%emt 0:00:01]} Kb7 {[%emt 0:00:22]} 62. Kf2 {[%emt 0:00:16]} Bh1 {[%emt 0:01:57]} 63. Ke3 {[%emt 0:00:18]} Nf3 {[%emt 0:00:45]} 64. Bf6 {[%emt 0:00:02]} Nh4 {[%emt 0:00:24]} 65. Bd8 {[%emt 0:01:05]} Nf5+ {[%emt 0:00:03]} 66. Kf4 {[%emt 0:00:21]} Nd4 {[%emt 0:03:04]} 67. Ke5 {[%emt 0:00:44]} Nf3+ {[%emt 0:00:02]} 68. Kf6 {[%emt 0:00:07]} e5 {[%emt 0:00:01]} 69. Kxf7 {[%emt 0:00:09]} e4 {[%emt 0:04:54]} 70. g6 {[%emt 0:01:24]} Ne5+ {[%emt 0:00:10]} 71. Kf6 {[%emt 0:00:29]} Nxg6 {[%emt 0:00:27]} 72. Kxg6 {[%emt 0:00:01]} e3 {[%emt 0:00:09]} 73. Bg5 {[%emt 0:02:15]} e2 {[%emt 0:00:41]} 74. Nxe2 {[%emt 0:00:01]} Be4+ {[%emt 0:00:04]} 75. Kf6 {[%emt 0:00:07]} Bc2 {[%emt 0:00:14]} 76. Nc3 {[%emt 0:00:01]} Kc7 {[%emt 0:00:06]} 77. Bf4+ {[%emt 0:00:29]} 1-0